Cogmind - Beta 15 @@@ ROGUE MODE // 2025.06.26 @ 15:31:29 Player: BlobtheGreat Result: Destroyed by as-56362 with Assembled Blade Performance ------------- Evolutions (0) 0 Regions Visited (0) 0 Robots Destroyed (6) 30 Value Destroyed (88) 88 Prototype IDs (0) 0 Alien Tech Used (0) 0 Bonus (0) 0 TOTAL SCORE: 118 Bonus ------- None Cogmind --------- Core Integrity 0/250 Matter 300/300 Energy 100/100 System Corruption 0% Temperature Cool (0) Movement Core (100) Ox1 Location -11/Scrapyard Parts ------- > --- POWER (1) -------- (None) > --- PROPULSION (2) --- (None) > --- UTILITY (2) ------ Small Storage Unit > --- WEAPON (2) ------- (None) > --- INVENTORY (8) ---- Compact Wheel Compact Wheel Improved Terrain Scanner Seismic Detector Peak State ------------ > --- POWER ------------ Ion Engine > --- PROPULSION ------- Light Treads Light Treads > --- UTILITY ---------- Small Storage Unit Seismic Detector > --- WEAPON ----------- EM Pulse Gun Medium Laser > --- INVENTORY -------- Ion Engine Aluminum Leg Aluminum Leg Compact Wheel Compact Wheel Improved Terrain Scanner Seismic Detector Small Laser [Rating: 8] Favorites ----------- Power Ion Engine Engine Ion Engine Propulsion Light Treads Treads Light Treads Leg Aluminum Leg Utility Small Storage Unit Device Seismic Detector Storage Small Storage Unit Weapon Medium Laser Energy Gun Medium Laser Build | -11 ------- Run | Yrd Slots Evolved . | . Power . | . Propulsion . | . Utility . | . Weapon . | . Parts Attached 11 | 11 Power 2 | 2 Engine 2 | 2 Core . | . Reactor . | . Propulsion 4 | 4 Treads 2 | 2 Leg 2 | 2 Wheel . | . Hover . | . Flight . | . Utility 2 | 2 Device 1 | 1 Storage 1 | 1 Processor . | . Hackware . | . Protection . | . Artifact . | . Weapon 3 | 3 Energy Gun 3 | 3 Energy Cannon . | . Ballistic Gun . | . Ballistic Cannon . | . Launcher . | . Special Weapon . | . Impact Weapon . | . Slashing Weapon . | . Piercing Weapon . | . Special Melee Weapon . | . Unidentified Prototypes . | . Parts Lost 10 | 10 Power 2 | 2 Propulsion 4 | 4 Utility 1 | 1 Weapon 3 | 3 Highest Loss Streak 4 | 4 To Critical Strikes . | . Average Backups 7 | 7 Power . | . Propulsion 3 | 3 Utility 1 | 1 Weapon . | . Tool/Special . | . Unused Backups 4 | 4 Power . | . Propulsion 2 | 2 Utility 2 | 2 Weapon . | . Tool/Special . | . Average Slot Usage (%) . | . Peak Build Rating 8 | 8 Average Rating 7 | 7 On Entrance . | . Naked Turns . | . Heaviest Build 15 | 15 Greatest Support 40 | 40 Greatest Overweight (x) . | . Average Overweight (x) . | . Largest Inventory Capacity 8 | 8 Average Capacity 7 | 7 Most Carried 8 | 8 Average Carried 7 | 7 Final Capacity 8 | 8 Final Carried 4 | 4 Class Distribution -------------------- None Dominant Class ---------------- None Resources | -11 ----------- Run | Yrd Matter Collected 300 | 300 Remotely . | . Salvage Created 226 | 226 Parts 14 | 14 Haulers Intercepted . | . Recyclers Shooed 1 | 1 Parts Field Recycled . | . Retrieved Matter . | . Parts Self-Destructed . | . Prevented . | . Kills | -11 ------- Run | Yrd Combat Hostiles Destroyed 9 | 9 Guns 9 | 9 Classes Destroyed 3 | 3 Tunneler 5 | 5 Demolisher 1 | 1 Assembled 8 | 8 Best Kill Streak 6 | 6 Combat Bots Only 6 | 6 Max Kills in Single Turn 1 | 1 Gunslinging . | . Exploded . | . Melee . | . Uniques/NPCs Destroyed . | . Combat | -11 -------- Run | Yrd Hostile Shots Fired 76 | 76 Missed 18 | 18 Hits 58 | 58 Melee 14 | 14 Projectile 44 | 44 AOE 8 | 8 Critical Strikes 2 | 2 Part Disruptions 1 | 1 Damage Taken 1179 | 1179 Core 270 | 270 Absorbed by Shields . | . Core Remaining (%) . | . Volleys Fired 71 | 71 Largest 2 | 2 Hottest 90 | 90 Shots Fired 75 | 75 Gun 75 | 75 Cannon . | . Launcher . | . Special . | . Kinetic . | . Thermal 71 | 71 Explosive . | . Electromagnetic 4 | 4 Robot Hit Streak 5 | 5 Robot Miss Streak 4 | 4 Penetration Max . | . Secondary Targets . | . Shots Hit Robots 46 | 46 Core Hits 26 | 26 Critical Kills . | . Critical Parts Destroyed . | . Critical Strikes 2 | 2 Burn 2 | 2 Melee Attacks . | . Impact . | . Slashing . | . Piercing . | . Sneak Attacks . | . Combat Hostiles . | . Follow-up Attacks . | . Damage Inflicted 562 | 562 Guns 529 | 529 Cannons . | . Explosions . | . Melee . | . Ramming 33 | 33 Kinetic . | . Thermal 496 | 496 Explosive . | . Electromagnetic 33 | 33 Impact . | . Slashing . | . Piercing . | . Highest Corruption . | . Average Corruption . | . Corruption Purged . | . Corruption Blocked . | . Overload Shots . | . Overflow Damage . | . Projectiles . | . Explosions . | . Melee . | . Knockbacks . | . Impact . | . Kinetic . | . Secondary . | . Self-Inflicted Damage 2 | 2 Shots . | . Rammed 7 | 7 Targets Rammed 20 | 20 Kicked 12 | 12 Crushed 1 | 1 Highest Temperature 60 | 60 Average Temperature 20 | 20 Received Heat Transfer 180 | 180 Siege Activations . | . Martial Activations . | . Shielding Activations . | . Robots Disrupted . | . Combat Hostiles . | . Robots Corrupted . | . Combat Hostiles . | . Parts Fried . | . Impact Corruptions . | . Robots Melted . | . Combat Hostiles . | . Parts Melted . | . Heat Transferred 1415 | 1415 Parts Sabotaged . | . Parts Stolen . | . Parts Stripped . | . Power Chain Reactions . | . Alert | -11 ------- Run | Yrd Maximum Alert Level . | . Low Security (%) 100 | 100 Level 1 . | . Level 2 . | . Level 3 . | . Level 4 . | . Level 5 . | . High Security . | . Max Security . | . Peak Influence 30 | 30 Initial . | . Average . | . Influence Increases 55 | 55 Destroy 0b10 Robot/C 20 | 20 Destroy 0b10 Robot/NC 25 | 25 Destroy Leader 10 | 10 Influence Decreases 55 | 55 Time Decay 35 | 35 Lost Part 20 | 20 Squads Dispatched . | . Investigation . | . Extermination . | . Reinforcement . | . Assault . | . Garrison . | . Intercept . | . Searches Triggered . | . Construction Impeded . | . Haulers Reinforced . | . Active Scanning Responses . | . Cargo Convoy Interrupts . | . Stealth | -11 --------- Run | Yrd Distress Signals . | . Communications Jammed . | . Distress Signals . | . Times Spotted 21 | 21 Peak Tracking Total 4 | 4 Tactical Retreats 4 | 4 Traps | -11 ------- Run | Yrd Traps Triggered . | . Indirectly . | . Trap Hack Attempts . | . Triggered . | . Disarmed . | . Reprogrammed . | . Reused . | . Traps Extracted . | . Installed . | . Triggered . | . Machines | -11 ---------- Run | Yrd Machines Disabled . | . Max in Single Turn . | . Machines Repaired . | . Machines Dismantled . | . Machines Sabotaged . | . Overloaded Fab Kills . | . Hacking | -11 --------- Run | Yrd Machines Accessed . | . Terminals . | . Fabricators . | . Repair Stations . | . Recycling Units . | . Scanalyzers . | . Garrison Access . | . Total Hacks . | . Successful . | . Failed . | . Catastrophic . | . Database Lockouts . | . Manual . | . Terminals . | . Fabricators . | . Repair Stations . | . Recycling Units . | . Scanalyzers . | . Garrison Access . | . Terminal Hacks . | . Fabricator Hacks . | . Repair Station Hacks . | . Recycling Unit Hacks . | . Scanalyzer . | . Garrison Access Hacks . | . Unauthorized Hacks . | . Terminals . | . Fabricators . | . Repair Stations . | . Recycling Units . | . Scanalyzers . | . Garrison Access . | . Data Cores Recovered . | . Used . | . Hacking Detections . | . Full Trace Events . | . Feedback Events . | . Feedback Blocked . | . Robot Schematics Acquired . | . Robots Built . | . Authchips . | . Time . | . Total Robot Build Rating . | . Part Schematics Acquired . | . Parts Built . | . Authchips . | . Time . | . Total Part Build Rating . | . Parts Repaired . | . Time . | . Parts Recycled . | . Recycled Matter . | . Retrieved Matter . | . Retrieved Components . | . Parts Scanalyzed . | . Part Schematics Acquired . | . Parts Damaged . | . Bothacking | -11 ------------ Run | Yrd Used RIF Installer . | . Robots Hacked . | . Non-combat . | . Combat . | . Robot Hacks Applied . | . Relay Couplers Released . | . Fabnet Peak Effective % . | . Robots Rewired . | . Allies Hacked . | . Hacks Repelled . | . Allies | -11 -------- Run | Yrd Total Allies . | . Largest Group . | . Highest-Rated Group . | . Highest-Rated Ally . | . Total Orders . | . Ally Attacks . | . Total Damage . | . Kills . | . Allies Corrupted . | . Allies Melted . | . Intel | -11 ------- Run | Yrd Active Infowar (turns) 1945 | 1945 Seismic 1945 | 1945 Robot Analysis Total . | . Derelict Logs Recovered . | . Drone Launches . | . Drone Recoveries . | . Exploration | -11 ------------- Run | Yrd Turns Passed 2034 | 2034 Spaces Moved 311 | 311 Core 4 | 4 Treads 288 | 288 Legs 19 | 19 Wheels . | . Hover . | . Flight . | . Fastest Speed 50 | 50 Average Speed 156 | 156 Slowest Speed 160 | 160 Overloaded Moves . | . Propulsion Burnouts . | . Robots Hopped . | . Potential Cave-ins . | . Cave-ins Triggered . | . Exploration Rate (%) 26 | 26 Regions Visited . Branch Regions . Pre-discovered Areas . | . Known Exits Taken . | . Unknown Exits Taken . | . Scrap Searched . | . Spaces Dug . | . Terrain Destroyed . | . Melee . | . Projectile . | . AOE . | . Terrain Rammed . | . Walls Destroyed . | . Machines Disabled . | . Actions | -11 --------- Run | Yrd Total 1777 | 1777 Wait 1356 | 1356 Move 311 | 311 Hop . | . Pick Up 8 | 8 Fast Attach 7 | 7 Attach 4 | 4 Detach . | . Swap . | . Drop . | . Fire 71 | 71 Melee . | . Ram 6 | 6 Kick 12 | 12 Crush 2 | 2 Escape Stasis . | . Rewire . | . Trap . | . Miscellaneous . | . Route ------- -11/Scrapyard (discovered 1 exit: [*Mat]) History --------- Turn | Location | Event 7 | -11/Scrapyard | Discovered new exit (range 16) 1798 | -11/Scrapyard | Assembled infested the area 2026 | -11/Scrapyard | Core integrity fell below 50% 2033 | -11/Scrapyard | Core integrity fell below 20% 2035 | -11/Scrapyard | Destroyed by as-56362 with Assembled Blade Last Messages --------------- 01938_ as-01580 destroyed. 01942_ Acquired 20 matter. 01956_ as-36333 destroyed. 01966_ Ion Engine destroyed. 01973_ as-51504 destroyed. 01988_ as-62587 destroyed. 01994_ as-88968 destroyed. 02000_ as-78808 destroyed. 02014_ Sml. Laser destroyed. 02015_ Kicked as-56362. 02016_ Kicked as-56362 out of the way. 02017_ Aluminum Leg destroyed. 02017_ Kicked as-56362 out of the way. 02018_ Kicked as-56362. 02019_ Seismic Detector destroyed. 02020_ Kicked as-56362. 02028_ Kicked as-56362 out of the way. 02028_ Aluminum Leg destroyed. 02029_ Slammed into as-56362. 02030_ Slammed into as-13933. Map ----- +----------------------------------------------------+ | ???????????????????????????????????? ???????????? | | ???????????????????????????????????? ???????????? | | ???????????????????????????????????? ????????#### | | ???????????????????????????????????# ????????# | | ???????????????????????????????????# #???????# | | ?????????????????????????????#####?# #???????# | | ????????????????????????????## ## #???????# | | ????????????????????????????# # ###?????# | | ????????????????????????????# # # #?????# | | ????????????????????????????# #?????# | | ????????????????????????????###### # # #?????# | | ?????????????????????????????????### #???????# | | ???????????????????????#####???????# ############ | | ?????????????????####### #???????# | | ?????????????????# ##??????# | | ?????????????????# #??????# ###### | | ??????????????###### ### #???#### #????# | | ??????????????# ### ##???#= % #????# | | ??????????????# ## #????#%######### ###??# | | ??????????????# ##a ###### #??# ?# | | ??????????????# ## a% % #??# ?# | | ??????????????# ## %########??# # | | ??????????????## ##%%#?????????# # | | ???????????????##### ##%%#?????????# | | ???????????????????######%a#?????????# # | | ????????????????????????#@a#?????????# # | | ????????????????????????#% #?????????############# | | ????????????????????????# #?????##########???# | | ????????????????????????# #?????# #???# | | | ????????????????????????# #?????# #???# | | ??????????????????????### ####### ##### | | ??????????????????????# %| | | ??????????????????????# * | | ??????????????????????############ ##### | | ?????????????????????????????????# #???# | | ?????????????????????????????????# #???#### | | ?????????????????????????????????#### ####?????## | | ????????????????????????????????????# #?????????# | | ????????????????????????????????????####?????????? | | ?????????????????????????????????????????????????? | | ?????????????????????????????????????????????????? | | ?????????????????????????????????????????????????? | | ?????????????????????????????????????????????????? | | ?????????????????????????????????????????????????? | | ?????????????????????????????????????????????????? | | ?????????????????????????????????????????????????? | | ?????????????????????????????????????????????????? | | ?????????????????????????????????????????????????? | | ?????????????????????????????????????????????????? | | ?????????????????????????????????????????????????? | +----------------------------------------------------+ Best States ------------- Heat Dissipation 25 Energy Generation 10 Energy Capacity 250 Matter Stores 300 Matter Capacity 300 Sight Range 16 Terrain Scan Density 10 Evasion (%) 55 Recoil Reduction 2 Item Schematics ----------------- None Robot Schematics ------------------ None Fabricated ------------ Nothing Repaired ---------- Nothing Alien Tech Used ----------------- None Achievements -------------- Curiosity Killed The Cat Challenges ------------ None Game ------ Seed AblativeArcModule Manual? 0 Play Time 00:10:50 Cumulative 43.3 hours Start 2025.06.26 @ 15:25:58 End 2025.06.26 @ 15:31:29 Sessions 0 Manual Loads 0 Difficulty Rogue Special Mode None Game No. 41 Rogue 41 Adventurer 0 Explorer 0 Win Type - Total 0 Types 0/0/0/0/0/0/0/0/0/0 Lore% 25 Gallery% 29 Achievement% 33 Wizard Run 0 Options --------- Layout 1 ASCII 0 Keyboard 1 Movement Arrows Keybinds 0 Fullscreen 1 Font 24/Smallcaps Map View 50x40 Zoom Use 0% Tactical HUD 1 Map Filters NONE Filters NONE Steam 1 RUN: ba89dc5b-8c3b-4cc8-8cd8-04e3b202a847